[Event "Titled Tuesday Blitz April 18 Early 2023"]
[White "Petukhov, Dmitry"]
[Black "Naroditsky, Daniel"]
[WhiteFideId "4142748"]
[BlackFideId "2026961"]
[WhiteElo "2311"]
[BlackElo "2633"]
[Result "0-1"]
[Round "01"]
[TimeControl "180+2"]
[Date "2023.04.18"]
[WhiteClock "0:00:16"]
[BlackClock "0:00:23"]

1. e4 {[%clk 0:02:56]}  c5 {[%clk 0:02:57]} 2. c3 {[%clk 0:02:56]}  d5 {[%clk 0:02:56]} 3. exd5 {[%clk 0:02:56]}  Nf6 {[%clk 0:02:56]} 4. d4 {[%clk 0:02:55]}  cxd4 {[%clk 0:02:52]} 5. cxd4 {[%clk 0:02:51]}  Nxd5 {[%clk 0:02:51]} 6. Nc3 {[%clk 0:02:50]}  Nc6 {[%clk 0:02:49]} 7. Bc4 {[%clk 0:02:47]}  Nb6 {[%clk 0:02:38]} 8. Bb5 {[%clk 0:02:46]}  Bd7 {[%clk 0:02:19]} 9. Nge2 {[%clk 0:02:41]}  e6 {[%clk 0:02:17]} 10. O-O {[%clk 0:02:37]}  Nb4 {[%clk 0:02:12]} 11. a3 {[%clk 0:02:15]}  N4d5 {[%clk 0:02:10]} 12. Bd3 {[%clk 0:02:11]}  Be7 {[%clk 0:02:01]} 13. Ne4 {[%clk 0:02:06]}  O-O {[%clk 0:01:57]} 14. Bd2 {[%clk 0:02:06]}  Bc6 {[%clk 0:01:56]} 15. N2g3 {[%clk 0:02:05]}  Nd7 {[%clk 0:01:41]} 16. Qe2 {[%clk 0:02:01]}  Re8 {[%clk 0:01:38]} 17. Rac1 {[%clk 0:02:01]}  Rc8 {[%clk 0:01:33]} 18. Rfe1 {[%clk 0:02:00]}  Qb6 {[%clk 0:01:26]} 19. Be3 {[%clk 0:01:27]}  Nf8 {[%clk 0:01:14]} 20. b4 {[%clk 0:01:27]}  Ng6 {[%clk 0:01:07]} 21. Nh5 {[%clk 0:01:22]}  a6 {[%clk 0:01:00]} 22. Nc5 {[%clk 0:01:18]}  Qc7 {[%clk 0:00:52]} 23. Bd2 {[%clk 0:01:08]}  Bd6 {[%clk 0:00:50]} 24. g3 {[%clk 0:01:05]}  Qe7 {[%clk 0:00:46]} 25. Ne4 {[%clk 0:00:54]}  Bb8 {[%clk 0:00:45]} 26. Bg5 {[%clk 0:00:54]}  Qf8 {[%clk 0:00:45]} 27. Rc5 {[%clk 0:00:43]}  Ba7 {[%clk 0:00:44]} 28. Rc4 {[%clk 0:00:42]}  e5 {[%clk 0:00:40]} 29. Nc5 {[%clk 0:00:30]}  exd4 {[%clk 0:00:35]} 30. Qd1 {[%clk 0:00:30]}  Nc3 {[%clk 0:00:28]} 31. Qa1 {[%clk 0:00:27]}  Rxe1+ {[%clk 0:00:25]} 32. Qxe1 {[%clk 0:00:27]}  Re8 {[%clk 0:00:25]} 33. Qd2 {[%clk 0:00:28]}  Ne5 {[%clk 0:00:25]} 34. Qc2 {[%clk 0:00:22]}  Nf3+ {[%clk 0:00:24]} 35. Kf1 {[%clk 0:00:21]}  Nxh2+ {[%clk 0:00:22]} 36. Kg1 {[%clk 0:00:18]}  Re1+ {[%clk 0:00:23]} 37. Kxh2 {[%clk 0:00:16]}  Rh1# {[%clk 0:00:23]} 0-1


[Site "https://www.chess.com"]

[Event "Titled Tuesday Blitz April 18 Early 2023"]
[White "Mamedov, Rauf"]
[Black "Palczert, Matyas"]
[WhiteFideId "13401653"]
[BlackFideId "784958"]
[WhiteElo "2635"]
[BlackElo "2224"]
[Result "1-0"]
[Round "01"]
[TimeControl "180+2"]
[Date "2023.04.18"]
[WhiteClock "0:00:59"]
[BlackClock "0:00:01"]

1. e4 {[%clk 0:02:59]}  c5 {[%clk 0:02:58]} 2. Nf3 {[%clk 0:02:59]}  Nf6 {[%clk 0:02:47]} 3. d3 {[%clk 0:02:57]}  Nc6 {[%clk 0:02:43]} 4. g3 {[%clk 0:02:57]}  d5 {[%clk 0:02:41]} 5. exd5 {[%clk 0:02:57]}  Nxd5 {[%clk 0:02:40]} 6. Bg2 {[%clk 0:02:57]}  g6 {[%clk 0:02:37]} 7. O-O {[%clk 0:02:56]}  Bg7 {[%clk 0:02:38]} 8. Re1 {[%clk 0:02:56]}  O-O {[%clk 0:02:37]} 9. Nbd2 {[%clk 0:02:55]}  b6 {[%clk 0:02:35]} 10. Ne4 {[%clk 0:02:54]}  Bb7 {[%clk 0:02:35]} 11. a3 {[%clk 0:02:54]}  Qd7 {[%clk 0:02:34]} 12. Rb1 {[%clk 0:02:53]}  Rfd8 {[%clk 0:02:28]} 13. Bd2 {[%clk 0:02:53]}  Nf6 {[%clk 0:02:20]} 14. Nxf6+ {[%clk 0:02:52]}  Bxf6 {[%clk 0:02:19]} 15. Bc3 {[%clk 0:02:50]}  Nd4 {[%clk 0:02:12]} 16. Bxd4 {[%clk 0:02:50]}  cxd4 {[%clk 0:02:11]} 17. h4 {[%clk 0:02:49]}  Rac8 {[%clk 0:02:06]} 18. Rc1 {[%clk 0:02:48]}  Bg7 {[%clk 0:02:03]} 19. Qd2 {[%clk 0:02:47]}  Bd5 {[%clk 0:01:54]} 20. Ne5 {[%clk 0:02:43]}  Bxe5 {[%clk 0:01:37]} 21. Rxe5 {[%clk 0:02:43]}  Bxg2 {[%clk 0:01:36]} 22. Kxg2 {[%clk 0:02:43]}  Rc7 {[%clk 0:01:36]} 23. h5 {[%clk 0:02:42]}  Rdc8 {[%clk 0:01:32]} 24. h6 {[%clk 0:02:39]}  Rc5 {[%clk 0:01:30]} 25. Qf4 {[%clk 0:02:21]}  Rxc2 {[%clk 0:01:10]} 26. Rxc2 {[%clk 0:02:18]}  Rxc2 {[%clk 0:01:10]} 27. Re4 {[%clk 0:02:17]}  Qb7 {[%clk 0:00:57]} 28. Kh2 {[%clk 0:02:01]}  Rc5 {[%clk 0:00:55]} 29. g4 {[%clk 0:01:51]}  Rd5 {[%clk 0:00:53]} 30. Qf6 {[%clk 0:01:48]}  Qb8+ {[%clk 0:00:36]} 31. Qf4 {[%clk 0:01:47]}  Qxf4+ {[%clk 0:00:35]} 32. Rxf4 {[%clk 0:01:48]}  f6 {[%clk 0:00:34]} 33. Re4 {[%clk 0:01:48]}  e5 {[%clk 0:00:33]} 34. Re2 {[%clk 0:01:43]}  Rc5 {[%clk 0:00:33]} 35. f4 {[%clk 0:01:42]}  Kf7 {[%clk 0:00:32]} 36. Kg3 {[%clk 0:01:41]}  Rc1 {[%clk 0:00:30]} 37. fxe5 {[%clk 0:01:41]}  Rd1 {[%clk 0:00:25]} 38. Rf2 {[%clk 0:01:36]}  Rxd3+ {[%clk 0:00:24]} 39. Kg2 {[%clk 0:01:36]}  f5 {[%clk 0:00:19]} 40. gxf5 {[%clk 0:01:33]}  gxf5 {[%clk 0:00:20]} 41. Rxf5+ {[%clk 0:01:33]}  Ke6 {[%clk 0:00:19]} 42. Rf6+ {[%clk 0:01:33]}  Kxe5 {[%clk 0:00:19]} 43. Rf7 {[%clk 0:01:33]}  Rd2+ {[%clk 0:00:19]} 44. Kf3 {[%clk 0:01:33]}  Rxb2 {[%clk 0:00:18]} 45. Rxh7 {[%clk 0:01:33]}  Rb3+ {[%clk 0:00:18]} 46. Kg4 {[%clk 0:01:33]}  Rxa3 {[%clk 0:00:19]} 47. Re7+ {[%clk 0:01:33]}  Kf6 {[%clk 0:00:15]} 48. h7 {[%clk 0:01:33]}  Kxe7 {[%clk 0:00:15]} 49. h8=Q {[%clk 0:01:33]}  Ra4 {[%clk 0:00:15]} 50. Kf5 {[%clk 0:01:33]}  Kd6 {[%clk 0:00:15]} 51. Qd8+ {[%clk 0:01:31]}  Kc5 {[%clk 0:00:15]} 52. Ke5 {[%clk 0:01:30]}  Ra5 {[%clk 0:00:13]} 53. Qxd4+ {[%clk 0:01:29]}  Kc6+ {[%clk 0:00:14]} 54. Ke6 {[%clk 0:01:29]}  Kb7 {[%clk 0:00:12]} 55. Qe4+ {[%clk 0:01:29]}  Kc7 {[%clk 0:00:11]} 56. Qa8 {[%clk 0:01:28]}  Ra3 {[%clk 0:00:07]} 57. Qh8 {[%clk 0:01:23]}  Re3+ {[%clk 0:00:04]} 58. Kd5 {[%clk 0:01:22]}  Rd3+ {[%clk 0:00:04]} 59. Kc4 {[%clk 0:01:21]}  Rd7 {[%clk 0:00:04]} 60. Kb5 {[%clk 0:01:21]}  Rd5+ {[%clk 0:00:03]} 61. Kb4 {[%clk 0:01:21]}  a5+ {[%clk 0:00:01]} 62. Kc4 {[%clk 0:01:21]}  Rc5+ {[%clk 0:00:02]} 63. Kd4 {[%clk 0:01:20]}  Kb7 {[%clk 0:00:03]} 64. Qd8 {[%clk 0:01:16]}  Ka7 {[%clk 0:00:03]} 65. Qd7+ {[%clk 0:01:15]}  Ka6 {[%clk 0:00:03]} 66. Qf7 {[%clk 0:01:15]}  Kb5 {[%clk 0:00:02]} 67. Qf1+ {[%clk 0:01:14]}  Kc6 {[%clk 0:00:02]} 68. Qa6 {[%clk 0:01:14]}  Kc7 {[%clk 0:00:03]} 69. Qa8 {[%clk 0:01:13]}  Rc6 {[%clk 0:00:01]} 70. Qa7+ {[%clk 0:01:11]}  Kd6 {[%clk 0:00:02]} 71. Qb8+ {[%clk 0:01:11]}  Kd7 {[%clk 0:00:02]} 72. Qa7+ {[%clk 0:01:05]}  Kd6 {[%clk 0:00:02]} 73. Qb7 {[%clk 0:01:04]}  a4 {[%clk 0:00:02]} 74. Qa6 {[%clk 0:01:01]}  b5 {[%clk 0:00:02]} 75. Qxb5 {[%clk 0:01:01]}  a3 {[%clk 0:00:02]} 76. Qa5 {[%clk 0:00:59]}  Ke6 {[%clk 0:00:01]} 77. Qd5+ {[%clk 0:00:59]} 1-0


[Site "https://www.chess.com"]

[Event "Titled Tuesday Blitz April 18 Early 2023"]
[White "Fiedorek, Michal"]
[Black "Bluebaum, Matthias"]
[WhiteFideId "1199528"]
[BlackFideId "24651516"]
[WhiteElo "2135"]
[BlackElo "2638"]
[Result "0-1"]
[Round "01"]
[TimeControl "180+2"]
[Date "2023.04.18"]
[WhiteClock "0:00:01"]
[BlackClock "0:00:53"]

1. e4 {[%clk 0:03:00]}  e6 {[%clk 0:02:58]} 2. d4 {[%clk 0:02:59]}  d5 {[%clk 0:02:59]} 3. Nd2 {[%clk 0:02:58]}  c5 {[%clk 0:02:59]} 4. exd5 {[%clk 0:02:57]}  Qxd5 {[%clk 0:03:00]} 5. Ngf3 {[%clk 0:02:58]}  cxd4 {[%clk 0:03:00]} 6. Bc4 {[%clk 0:02:58]}  Qd6 {[%clk 0:03:01]} 7. O-O {[%clk 0:02:58]}  Nf6 {[%clk 0:03:02]} 8. Nb3 {[%clk 0:02:58]}  Nc6 {[%clk 0:03:03]} 9. Nbxd4 {[%clk 0:02:59]}  Nxd4 {[%clk 0:03:03]} 10. Nxd4 {[%clk 0:02:59]}  Be7 {[%clk 0:03:03]} 11. Re1 {[%clk 0:02:55]}  O-O {[%clk 0:03:02]} 12. c3 {[%clk 0:02:54]}  Qc7 {[%clk 0:02:59]} 13. Bb3 {[%clk 0:02:50]}  e5 {[%clk 0:02:53]} 14. Nc2 {[%clk 0:02:46]}  Bg4 {[%clk 0:02:52]} 15. f3 {[%clk 0:02:40]}  Bc5+ {[%clk 0:02:45]} 16. Kh1 {[%clk 0:02:37]}  Bf5 {[%clk 0:02:43]} 17. Qe2 {[%clk 0:02:36]}  e4 {[%clk 0:02:40]} 18. Be3 {[%clk 0:02:04]}  exf3 {[%clk 0:02:34]} 19. Qxf3 {[%clk 0:02:04]}  Be4 {[%clk 0:02:34]} 20. Qh3 {[%clk 0:01:54]}  Rae8 {[%clk 0:02:28]} 21. Bxc5 {[%clk 0:01:45]}  Qxc5 {[%clk 0:02:29]} 22. Nd4 {[%clk 0:01:45]}  Re5 {[%clk 0:02:23]} 23. Qg3 {[%clk 0:01:43]}  Rg5 {[%clk 0:02:23]} 24. Qh3 {[%clk 0:01:11]}  Bxg2+ {[%clk 0:02:21]} 25. Qxg2 {[%clk 0:01:12]}  Rxg2 {[%clk 0:02:21]} 26. Kxg2 {[%clk 0:01:13]}  Ng4 {[%clk 0:02:09]} 27. Re4 {[%clk 0:00:58]}  Qg5 {[%clk 0:01:50]} 28. Nf3 {[%clk 0:00:57]}  Qg6 {[%clk 0:01:48]} 29. Re2 {[%clk 0:00:41]}  Ne3+ {[%clk 0:01:25]} 30. Kh1 {[%clk 0:00:16]}  Qe4 {[%clk 0:01:25]} 31. Rf2 {[%clk 0:00:17]}  Ng4 {[%clk 0:01:23]} 32. Rff1 {[%clk 0:00:16]}  Ne3 {[%clk 0:01:02]} 33. Rf2 {[%clk 0:00:16]}  g6 {[%clk 0:00:58]} 34. Re1 {[%clk 0:00:15]}  Kg7 {[%clk 0:00:58]} 35. Bc2 {[%clk 0:00:13]}  Qf4 {[%clk 0:00:56]} 36. Bb3 {[%clk 0:00:05]}  Re8 {[%clk 0:00:53]} 37. Ree2 {[%clk 0:00:03]}  Ng4 {[%clk 0:00:53]} 38. Rxe8 {[%clk 0:00:01]}  Nxf2+ {[%clk 0:00:53]} 39. Kg2 {[%clk 0:00:01]}  Ne4 {[%clk 0:00:52]} 40. Re7 {[%clk 0:00:01]}  Qg4+ {[%clk 0:00:53]} 41. Kf1 {[%clk 0:00:01]}  Qxf3+ {[%clk 0:00:53]} 0-1


[Site "https://www.chess.com"]

[Event "Titled Tuesday Blitz April 18 Early 2023"]
[White "Bryant, John Daniel"]
[Black "Mouhamad, Joachim"]
[WhiteFideId "2031280"]
[BlackFideId "656410"]
[WhiteElo "2455"]
[BlackElo "2125"]
[Result "1-0"]
[Round "01"]
[TimeControl "180+2"]
[Date "2023.04.18"]
[WhiteClock "0:00:03"]
[BlackClock "0:00:02"]

1. e4 {[%clk 0:02:57]}  c5 {[%clk 0:02:55]} 2. c3 {[%clk 0:02:56]}  Nf6 {[%clk 0:02:53]} 3. e5 {[%clk 0:02:55]}  Nd5 {[%clk 0:02:52]} 4. Nf3 {[%clk 0:02:55]}  Nc6 {[%clk 0:02:48]} 5. Bc4 {[%clk 0:02:55]}  Nb6 {[%clk 0:02:46]} 6. Bb3 {[%clk 0:02:55]}  c4 {[%clk 0:02:22]} 7. Bc2 {[%clk 0:02:53]}  d6 {[%clk 0:02:21]} 8. exd6 {[%clk 0:02:53]}  Qxd6 {[%clk 0:02:20]} 9. Na3 {[%clk 0:02:51]}  Bg4 {[%clk 0:02:12]} 10. Qe2 {[%clk 0:02:38]}  e5 {[%clk 0:01:45]} 11. Nxc4 {[%clk 0:02:33]}  Nxc4 {[%clk 0:01:45]} 12. Qxc4 {[%clk 0:02:34]}  Bxf3 {[%clk 0:01:45]} 13. gxf3 {[%clk 0:02:34]}  Be7 {[%clk 0:01:42]} 14. Qe4 {[%clk 0:01:55]}  g6 {[%clk 0:01:36]} 15. f4 {[%clk 0:01:28]}  O-O-O {[%clk 0:01:33]} 16. fxe5 {[%clk 0:01:26]}  Nxe5 {[%clk 0:01:32]} 17. d4 {[%clk 0:01:26]}  Nc6 {[%clk 0:01:06]} 18. Bf4 {[%clk 0:01:22]}  Qd7 {[%clk 0:01:05]} 19. O-O-O {[%clk 0:01:16]}  Rhe8 {[%clk 0:01:05]} 20. Qf3 {[%clk 0:01:14]}  f5 {[%clk 0:01:04]} 21. d5 {[%clk 0:00:55]}  Na5 {[%clk 0:00:59]} 22. d6 {[%clk 0:00:54]}  Bf6 {[%clk 0:00:58]} 23. Rd5 {[%clk 0:00:35]}  Nc6 {[%clk 0:00:55]} 24. Qg3 {[%clk 0:00:24]}  Re6 {[%clk 0:00:35]} 25. Rhd1 {[%clk 0:00:19]}  Rde8 {[%clk 0:00:35]} 26. h4 {[%clk 0:00:16]}  Be5 {[%clk 0:00:28]} 27. h5 {[%clk 0:00:12]}  Bxf4+ {[%clk 0:00:26]} 28. Qxf4 {[%clk 0:00:12]}  Re5 {[%clk 0:00:18]} 29. hxg6 {[%clk 0:00:10]}  hxg6 {[%clk 0:00:19]} 30. b3 {[%clk 0:00:10]}  a6 {[%clk 0:00:15]} 31. Kb2 {[%clk 0:00:10]}  Re2 {[%clk 0:00:14]} 32. R1d2 {[%clk 0:00:09]}  Rxd2 {[%clk 0:00:14]} 33. Qxd2 {[%clk 0:00:10]}  Re5 {[%clk 0:00:13]} 34. Rd3 {[%clk 0:00:08]}  Re6 {[%clk 0:00:11]} 35. f4 {[%clk 0:00:08]}  Nd8 {[%clk 0:00:11]} 36. c4 {[%clk 0:00:07]}  Nf7 {[%clk 0:00:11]} 37. c5 {[%clk 0:00:08]}  Nd8 {[%clk 0:00:11]} 38. b4 {[%clk 0:00:08]}  Re4 {[%clk 0:00:10]} 39. a3 {[%clk 0:00:07]}  Qg7+ {[%clk 0:00:08]} 40. Ka2 {[%clk 0:00:06]}  Nc6 {[%clk 0:00:09]} 41. Rd5 {[%clk 0:00:06]}  Qh8 {[%clk 0:00:06]} 42. Bxe4 {[%clk 0:00:06]}  fxe4 {[%clk 0:00:06]} 43. d7+ {[%clk 0:00:06]}  Kd8 {[%clk 0:00:07]} 44. Kb3 {[%clk 0:00:04]}  Qh3+ {[%clk 0:00:06]} 45. Kb2 {[%clk 0:00:04]}  Qf3 {[%clk 0:00:07]} 46. f5 {[%clk 0:00:04]}  e3 {[%clk 0:00:07]} 47. Qd3 {[%clk 0:00:03]}  Qf2+ {[%clk 0:00:07]} 48. Kb3 {[%clk 0:00:03]}  e2 {[%clk 0:00:07]} 49. Qd2 {[%clk 0:00:03]}  e1=Q {[%clk 0:00:07]} 50. Qg5+ {[%clk 0:00:03]}  Ne7 {[%clk 0:00:06]} 51. f6 {[%clk 0:00:03]}  Qb1+ {[%clk 0:00:06]} 52. Ka4 {[%clk 0:00:03]}  Qfc2+ {[%clk 0:00:06]} 53. Ka5 {[%clk 0:00:03]}  Nc6+ {[%clk 0:00:06]} 54. Kb6 {[%clk 0:00:04]}  Qf5 {[%clk 0:00:04]} 55. Rxf5 {[%clk 0:00:03]}  Qxf5 {[%clk 0:00:05]} 56. Qh4 {[%clk 0:00:03]}  Kxd7 {[%clk 0:00:04]} 57. Qh7+ {[%clk 0:00:03]}  Ke6 {[%clk 0:00:04]} 58. Qxb7 {[%clk 0:00:03]}  Nd4 {[%clk 0:00:03]} 59. Qc8+ {[%clk 0:00:03]}  Ke5 {[%clk 0:00:03]} 60. Qe8+ {[%clk 0:00:03]}  Ne6 {[%clk 0:00:03]} 61. f7 {[%clk 0:00:03]}  Qf6 {[%clk 0:00:03]} 62. c6 {[%clk 0:00:03]}  Kf5 {[%clk 0:00:02]} 63. Kb7 {[%clk 0:00:03]}  Ng7 {[%clk 0:00:02]} 64. c7 {[%clk 0:00:03]} 1-0


[Site "https://www.chess.com"]

[Event "Titled Tuesday Blitz April 18 Early 2023"]
[White "Devaev, Alexander"]
[Black "Hakobyan, Aram"]
[WhiteFideId "4169395"]
[BlackFideId "13306677"]
[WhiteElo "2204"]
[BlackElo "2584"]
[Result "0-1"]
[Round "01"]
[TimeControl "180+2"]
[Date "2023.04.18"]
[WhiteClock "0:00:17"]
[BlackClock "0:00:11"]

1. Nf3 {[%clk 0:02:54]}  Nf6 {[%clk 0:02:58]} 2. c4 {[%clk 0:02:54]}  b6 {[%clk 0:02:59]} 3. Nc3 {[%clk 0:02:54]}  Bb7 {[%clk 0:02:59]} 4. d4 {[%clk 0:02:52]}  e6 {[%clk 0:02:59]} 5. a3 {[%clk 0:02:52]}  g6 {[%clk 0:02:59]} 6. Qc2 {[%clk 0:02:51]}  Bg7 {[%clk 0:02:57]} 7. e4 {[%clk 0:02:51]}  d6 {[%clk 0:02:58]} 8. Bd3 {[%clk 0:02:51]}  O-O {[%clk 0:02:58]} 9. h3 {[%clk 0:02:52]}  Nbd7 {[%clk 0:02:53]} 10. Bg5 {[%clk 0:02:52]}  h6 {[%clk 0:02:53]} 11. Be3 {[%clk 0:02:53]}  e5 {[%clk 0:02:53]} 12. d5 {[%clk 0:02:53]}  a5 {[%clk 0:02:53]} 13. b3 {[%clk 0:02:40]}  Nc5 {[%clk 0:02:52]} 14. Be2 {[%clk 0:02:41]}  Nh5 {[%clk 0:02:38]} 15. Nd2 {[%clk 0:02:35]}  Nf4 {[%clk 0:02:37]} 16. Bf1 {[%clk 0:02:35]}  f5 {[%clk 0:02:26]} 17. g3 {[%clk 0:02:30]}  Nh5 {[%clk 0:02:26]} 18. exf5 {[%clk 0:02:29]}  gxf5 {[%clk 0:02:27]} 19. g4 {[%clk 0:02:29]}  Nf4 {[%clk 0:02:15]} 20. gxf5 {[%clk 0:02:27]}  Bc8 {[%clk 0:02:16]} 21. Nde4 {[%clk 0:01:40]}  Bxf5 {[%clk 0:02:12]} 22. Rg1 {[%clk 0:01:40]}  Kh8 {[%clk 0:02:00]} 23. Rg3 {[%clk 0:01:20]}  Qh4 {[%clk 0:01:55]} 24. Bxc5 {[%clk 0:01:03]}  bxc5 {[%clk 0:01:55]} 25. Bd3 {[%clk 0:01:03]}  Bh7 {[%clk 0:01:24]} 26. O-O-O {[%clk 0:01:03]}  Nxd3+ {[%clk 0:01:20]} 27. Qxd3 {[%clk 0:01:00]}  Rxf2 {[%clk 0:01:16]} 28. Rdg1 {[%clk 0:01:01]}  Rf7 {[%clk 0:01:16]} 29. Kb2 {[%clk 0:00:46]}  a4 {[%clk 0:01:09]} 30. b4 {[%clk 0:00:39]}  cxb4 {[%clk 0:01:07]} 31. axb4 {[%clk 0:00:39]}  a3+ {[%clk 0:00:48]} 32. Ka2 {[%clk 0:00:34]}  Qf4 {[%clk 0:00:44]} 33. Qe2 {[%clk 0:00:20]}  Qf5 {[%clk 0:00:38]} 34. R1g2 {[%clk 0:00:16]}  Raf8 {[%clk 0:00:25]} 35. Kxa3 {[%clk 0:00:14]}  Qf4 {[%clk 0:00:25]} 36. Kb3 {[%clk 0:00:15]}  Qh4 {[%clk 0:00:21]} 37. Rxg7 {[%clk 0:00:13]}  Rxg7 {[%clk 0:00:21]} 38. Rxg7 {[%clk 0:00:14]}  Kxg7 {[%clk 0:00:21]} 39. Qg2+ {[%clk 0:00:14]}  Kh8 {[%clk 0:00:21]} 40. c5 {[%clk 0:00:14]}  Qe7 {[%clk 0:00:18]} 41. c6 {[%clk 0:00:14]}  Qf7 {[%clk 0:00:17]} 42. b5 {[%clk 0:00:13]}  Rb8 {[%clk 0:00:17]} 43. Kc4 {[%clk 0:00:13]}  Qf4 {[%clk 0:00:15]} 44. Qg4 {[%clk 0:00:14]}  Qe3 {[%clk 0:00:11]} 45. Qg2 {[%clk 0:00:13]}  Qd4+ {[%clk 0:00:11]} 46. Kb3 {[%clk 0:00:13]}  Bxe4 {[%clk 0:00:10]} 47. Qxe4 {[%clk 0:00:14]}  Rxb5+ {[%clk 0:00:11]} 48. Kc2 {[%clk 0:00:15]}  Qxe4+ {[%clk 0:00:09]} 49. Nxe4 {[%clk 0:00:15]}  Rxd5 {[%clk 0:00:10]} 50. Kc3 {[%clk 0:00:16]}  Kg7 {[%clk 0:00:09]} 51. Kc4 {[%clk 0:00:16]}  Rd4+ {[%clk 0:00:09]} 52. Kb5 {[%clk 0:00:16]}  Rxe4 {[%clk 0:00:10]} 53. Ka6 {[%clk 0:00:17]}  Rb4 {[%clk 0:00:11]} 0-1


[Site "https://www.chess.com"]

[Event "Titled Tuesday Blitz April 18 Early 2023"]
[White "Shuvalov, Evgenij"]
[Black "Sargsyan, Shant"]
[WhiteFideId "4187237"]
[BlackFideId "13306766"]
[WhiteElo "2080"]
[BlackElo "2628"]
[Result "0-1"]
[Round "01"]
[TimeControl "180+2"]
[Date "2023.04.18"]
[WhiteClock "0:00:01"]
[BlackClock "0:00:37"]

1. d4 {[%clk 0:02:56]}  g6 {[%clk 0:02:57]} 2. c4 {[%clk 0:02:55]}  d6 {[%clk 0:02:56]} 3. e4 {[%clk 0:02:55]}  Bg7 {[%clk 0:02:56]} 4. Nc3 {[%clk 0:02:55]}  Nc6 {[%clk 0:02:55]} 5. Be3 {[%clk 0:02:53]}  e5 {[%clk 0:02:53]} 6. d5 {[%clk 0:02:49]}  Nce7 {[%clk 0:02:54]} 7. g4 {[%clk 0:02:46]}  c5 {[%clk 0:02:46]} 8. h4 {[%clk 0:02:39]}  f5 {[%clk 0:02:39]} 9. gxf5 {[%clk 0:02:34]}  gxf5 {[%clk 0:02:40]} 10. Qh5+ {[%clk 0:02:33]}  Kd7 {[%clk 0:02:39]} 11. Bh3 {[%clk 0:02:27]}  Nf6 {[%clk 0:02:26]} 12. Qe2 {[%clk 0:02:04]}  Kc7 {[%clk 0:02:24]} 13. exf5 {[%clk 0:01:57]}  Nxf5 {[%clk 0:02:23]} 14. Nf3 {[%clk 0:01:50]}  Nd4 {[%clk 0:02:22]} 15. Bxd4 {[%clk 0:01:34]}  exd4 {[%clk 0:02:19]} 16. Nb5+ {[%clk 0:01:35]}  Kb8 {[%clk 0:02:19]} 17. Ng5 {[%clk 0:01:25]}  a6 {[%clk 0:02:12]} 18. Na3 {[%clk 0:01:25]}  Re8 {[%clk 0:02:09]} 19. Ne6 {[%clk 0:01:22]}  Bxe6 {[%clk 0:02:10]} 20. Bxe6 {[%clk 0:01:21]}  Qa5+ {[%clk 0:02:08]} 21. Kf1 {[%clk 0:01:20]}  Ka7 {[%clk 0:02:05]} 22. Nb1 {[%clk 0:01:12]}  d3 {[%clk 0:01:59]} 23. Qd2 {[%clk 0:01:05]}  Qa4 {[%clk 0:01:40]} 24. Qc1 {[%clk 0:00:32]}  Ne4 {[%clk 0:01:37]} 25. Rh3 {[%clk 0:00:25]}  Qc2 {[%clk 0:01:26]} 26. Qxc2 {[%clk 0:00:20]}  dxc2 {[%clk 0:01:27]} 27. Nc3 {[%clk 0:00:21]}  Nd2+ {[%clk 0:01:12]} 28. Ke2 {[%clk 0:00:19]}  Nxc4 {[%clk 0:01:13]} 29. Rc1 {[%clk 0:00:17]}  Nxb2 {[%clk 0:01:12]} 30. Rxc2 {[%clk 0:00:17]}  Nc4 {[%clk 0:01:13]} 31. Ne4 {[%clk 0:00:15]}  Nb6 {[%clk 0:00:57]} 32. Kf1 {[%clk 0:00:11]}  Be5 {[%clk 0:00:56]} 33. Rf3 {[%clk 0:00:09]}  Rf8 {[%clk 0:00:55]} 34. Rxf8 {[%clk 0:00:08]}  Rxf8 {[%clk 0:00:56]} 35. Kg2 {[%clk 0:00:08]}  Na4 {[%clk 0:00:55]} 36. Ng5 {[%clk 0:00:08]}  Rf4 {[%clk 0:00:44]} 37. Kh3 {[%clk 0:00:06]}  Nc3 {[%clk 0:00:36]} 38. Nxh7 {[%clk 0:00:05]}  Ne4 {[%clk 0:00:37]} 39. Ng5 {[%clk 0:00:03]}  Nxf2+ {[%clk 0:00:36]} 40. Kg2 {[%clk 0:00:03]}  Nd1 {[%clk 0:00:36]} 41. Nf3 {[%clk 0:00:02]}  Ne3+ {[%clk 0:00:36]} 42. Kf2 {[%clk 0:00:01]}  Nxc2 {[%clk 0:00:37]} 43. h5 {[%clk 0:00:01]}  Nd4 {[%clk 0:00:37]} 0-1


[Site "https://www.chess.com"]

[Event "Titled Tuesday Blitz April 18 Early 2023"]
[White "Sjugirov, Sanan"]
[Black "Lorenzo De La Riva, Lazaro"]
[WhiteFideId "4189302"]
[BlackFideId "2268809"]
[WhiteElo "2569"]
[BlackElo "2294"]
[Result "1-0"]
[Round "01"]
[TimeControl "180+2"]
[Date "2023.04.18"]
[WhiteClock "0:01:28"]
[BlackClock "0:00:12"]

1. e4 {[%clk 0:02:59]}  c5 {[%clk 0:02:55]} 2. Nf3 {[%clk 0:02:59]}  Nc6 {[%clk 0:02:54]} 3. Bb5 {[%clk 0:02:58]}  e6 {[%clk 0:02:51]} 4. Bxc6 {[%clk 0:02:58]}  bxc6 {[%clk 0:02:50]} 5. d3 {[%clk 0:02:58]}  Ne7 {[%clk 0:02:49]} 6. Nbd2 {[%clk 0:02:59]}  Ng6 {[%clk 0:02:44]} 7. h4 {[%clk 0:02:58]}  h5 {[%clk 0:02:41]} 8. e5 {[%clk 0:02:57]}  f6 {[%clk 0:02:40]} 9. exf6 {[%clk 0:02:53]}  gxf6 {[%clk 0:02:38]} 10. Ne4 {[%clk 0:02:51]}  d5 {[%clk 0:02:35]} 11. Ng3 {[%clk 0:02:51]}  Bd6 {[%clk 0:01:50]} 12. c4 {[%clk 0:02:34]}  Qc7 {[%clk 0:01:29]} 13. Nf1 {[%clk 0:02:31]}  e5 {[%clk 0:01:26]} 14. Ne3 {[%clk 0:02:30]}  d4 {[%clk 0:01:23]} 15. Nf1 {[%clk 0:02:29]}  Bg4 {[%clk 0:01:14]} 16. Ng3 {[%clk 0:02:27]}  O-O-O {[%clk 0:01:10]} 17. Qa4 {[%clk 0:02:26]}  f5 {[%clk 0:01:06]} 18. Bd2 {[%clk 0:02:01]}  e4 {[%clk 0:00:51]} 19. Ba5 {[%clk 0:02:00]}  Qe7 {[%clk 0:00:48]} 20. Qxc6+ {[%clk 0:01:56]}  Kb8 {[%clk 0:00:46]} 21. dxe4 {[%clk 0:01:43]}  fxe4 {[%clk 0:00:45]} 22. Ng5 {[%clk 0:01:42]}  e3 {[%clk 0:00:32]} 23. O-O {[%clk 0:01:36]}  exf2+ {[%clk 0:00:26]} 24. Rxf2 {[%clk 0:01:37]}  Bxg3 {[%clk 0:00:25]} 25. Rf7 {[%clk 0:01:36]}  Rd6 {[%clk 0:00:19]} 26. Qb5+ {[%clk 0:01:34]}  Rb6 {[%clk 0:00:18]} 27. Bxb6 {[%clk 0:01:31]}  Qe8 {[%clk 0:00:12]} 28. Bxa7+ {[%clk 0:01:28]}  Ka8 {[%clk 0:00:12]} 29. Qb7# {[%clk 0:01:28]} 1-0


[Site "https://www.chess.com"]